bitfinex-derivatives/quotes_SOLF0:USTF0_20251002
["timestamp","ask_amount","ask_price","bid_price","bid_amount"]
[1759404601755,3.2376585,225.24,225.23,4.81]
[1759404601959,3.2376585,225.24,225.23,12.61]
[1759404602156,7.62,225.27,225.23,12.61]
[1759404602362,3.23804262,225.26,225.23,4.81]
[1759404602667,3.23804262,225.25,225.24,7.8]
[1759404606270,3.23804262,225.25,225.24,11.7937]
[1759404606467,7.62,225.3,225.24,7.8]
[1759404606667,3.19551928,225.29,225.23,6.9370398]
[1759404606965,3.19551928,225.28,225.24,7.8]
[1759404607174,3.19551928,225.27,225.24,7.8]
[1759404607377,7.62,225.34,225.24,7.8]
[1759404607666,4.30392833,225.33,225.27,7.8]
[1759404607863,7.62,225.34,225.27,7.8]
[1759404607864,3.19486881,225.32,225.27,7.8]
[1759404608066,3.19486881,225.31,225.27,7.8]
[1759404608270,3.19486881,225.3,225.26,2.1270398]
[1759404608476,7.62,225.34,225.27,7.8]
[1759404608675,3.19330672,225.33,225.27,11.7931]
[1759404608876,3.19330672,225.32,225.27,3.9931]
[1759404609075,3.19330672,225.31,225.28,7.8]
[1759404609378,7.62,225.34,225.28,7.8]
[1759404609573,3.19196236,225.33,225.28,11.7929]
[1759404609778,3.19196236,225.32,225.28,3.9929]
[1759404609972,3.19196236,225.31,225.28,3.9929]
[1759404610272,7.62,225.34,225.28,11.7929]
[1759404610479,3.190756,225.33,225.28,3.9929]
[1759404610674,3.190756,225.32,225.29,7.8]
[1759404610877,7.62,225.34,225.29,7.8]
[1759404611077,3.19073645,225.33,225.28,3.9929]
[1759404611273,3.19073645,225.32,225.27,7.8]
[1759404611578,7.62,225.38,225.3,7.8]
[1759404611783,3.18932791,225.37,225.3,7.8]
[1759404611977,3.18932791,225.36,225.3,7.8]
[1759404612178,3.18932791,225.35,225.3,7.8]
[1759404612374,1.10882441,225.39,225.3,7.8]
[1759404612575,3.1820813,225.38,225.33,7.8]
[1759404612879,3.1820813,225.37,225.32,6.1192398]
[1759404613078,3.1820813,225.36,225.33,7.8]
[1759404613281,8.72882441,225.41,225.32,13.9192398]
[1759404613481,3.13223113,225.4,225.32,13.9192398]
[1759404613681,8.72882441,225.41,225.32,11.7922]
[1759404613682,3.13223113,225.39,225.32,11.7922]
[1759404613880,3.13223113,225.38,225.32,11.7922]
[1759404614080,8.72882441,225.41,225.33,7.8]
[1759404614081,3.13223113,225.37,225.33,7.8]
[1759404614282,8.72882441,225.41,225.33,7.8]
[1759404614476,3.13098205,225.4,225.33,7.8]
[1759404614677,3.13098205,225.39,225.33,7.8]
[1759404614879,3.13098205,225.38,225.33,7.8]
[1759404615079,3.13098205,225.37,225.33,7.8]
[1759404615282,7.62,225.4,225.33,7.8]
[1759404615283,3.13083044,225.39,225.33,7.8]
[1759404615485,3.13083044,225.38,225.32,3.9922]
[1759404615679,7.62,225.41,225.33,7.8]
[1759404615882,3.12961166,225.4,225.33,7.8]
[1759404616081,3.12961166,225.39,225.33,7.8]
[1759404616281,1.35993327,225.43,225.35,3.9917]
[1759404616478,7.62,225.41,225.38,9.15993327]
[1759404616881,7.62,225.41,225.39,2.66]
[1759404621694,3.12277957,225.44,225.39,2.66]
[1759404621889,7.11297957,225.45,225.39,2.66]
[1759404622084,7.62,225.44,225.39,2.66]
[1759404622291,3.12277957,225.44,225.39,2.66]
[1759404622492,7.27,225.44,225.39,2.66]
[1759404622692,3.12277957,225.44,225.39,2.66]
[1759404622991,7.27,225.44,225.39,2.66]
[1759404623188,10.39277957,225.44,225.39,2.66]
[1759404623392,3.12277957,225.44,225.39,2.66]
[1759404623593,7.27,225.45,225.39,10.54]
[1759404624293,10.39277957,225.45,225.39,10.54]
[1759404624488,7.27,225.45,225.39,10.54]
[1759404624888,10.38931545,225.45,225.39,10.54]
[1759404625089,7.27,225.45,225.39,10.54]
[1759404625393,10.38931545,225.45,225.39,10.54]
[1759404625786,4.47924872,225.45,225.39,2.66]
[1759404625986,7.86,225.44,225.39,2.66]
[1759404626588,3.9905,225.43,225.39,2.66]
[1759404626788,1.35993327,225.44,225.39,2.66]
[1759404627091,9.21993327,225.4,225.39,2.66]
[1759404627789,12.33916425,225.4,225.39,2.66]
[1759404627988,12.33916425,225.4,225.39,4.81]
[1759404628996,7.86,225.39,225.29,11.1328]
[1759404629186,3.11923098,225.39,225.31,7.14]
[1759404629392,9.21993327,225.4,225.32,1.35993327]
[1759404629589,7.86,225.4,225.33,7.14]
[1759404629798,7.86,225.4,225.34,1.35993327]
[1759404630594,7.86,225.4,225.36,7.14]
[1759404630789,1.35993327,225.42,225.36,7.14]
[1759404630995,7.86,225.41,225.36,7.14]
[1759404631196,1.35993327,225.42,225.36,7.14]
[1759404631498,7.86,225.41,225.36,7.14]
[1759404631690,3.9907,225.42,225.36,7.14]
[1759404632287,1.35993327,225.44,225.36,7.14]
[1759404632491,7.86,225.43,225.34,1.35993327]
[1759404632693,7.86,225.39,225.3,10.79993327]
[1759404632998,7.86,225.36,225.3,10.79993327]
[1759404636001,7.86,225.36,225.3,9.44]
[1759404636299,11.8516,225.37,225.31,1.35993327]
[1759404637001,7.86,225.37,225.31,1.35993327]
[1759404637304,7.86,225.37,225.31,8.49993327]
[1759404643301,7.86,225.37,225.32,6.58]
[1759404643500,11.8514,225.38,225.32,6.58]
[1759404644402,7.86,225.36,225.32,13.72]
[1759404644606,7.86,225.36,225.32,6.58]
[1759404644805,7.86,225.36,225.33,7.14]
[1759404646705,3.12885129,225.37,225.33,7.14]
[1759404646905,7.86,225.36,225.33,7.14]
[1759404648300,7.86,225.36,225.32,6.58]
[1759404648506,7.86,225.36,225.33,7.14]
[1759404648900,7.86,225.36,225.32,10.5722]
[1759404649103,7.86,225.36,225.33,7.14]
[1759404649303,7.86,225.38,225.34,7.14]
[1759404649500,10.99223975,225.37,225.34,7.14]
[1759404649708,7.86,225.35,225.32,17.7122]
[1759404650002,7.86,225.35,225.33,7.14]
[1759404652604,3.1357714,225.34,225.33,7.14]
[1759404656810,7.86,225.35,225.33,7.14]
[1759404658809,7.3,225.37,225.32,7.51]
[1759404659013,10.43636779,225.36,225.31,7.51]
[1759404659214,3.13636779,225.35,225.31,7.51]
[1759404659414,7.3,225.36,225.31,7.51]
[1759404659616,3.13637898,225.35,225.3,9.44]
[1759404659912,7.3,225.36,225.33,7.51]
[1759404660114,3.13629537,225.35,225.33,7.51]
[1759404660315,1.10884214,225.38,225.33,11.5021]
[1759404660521,3.13617494,225.37,225.33,7.51]
[1759404660725,3.13617494,225.36,225.32,7.93993327]
[1759404661016,8.40882387,225.4,225.33,7.51]
[1759404661214,3.13604087,225.39,225.34,1.35993327]
[1759404661414,3.13604087,225.38,225.36,1.35993327]
[1759404661607,8.40882387,225.44,225.36,8.86993327]
[1759404661807,4.23069711,225.43,225.38,1.35993327]
[1759404662011,3.12187324,225.42,225.39,7.51]
[1759404662214,3.12187324,225.41,225.39,7.51]
[1759404662417,3.12187324,225.4,225.39,7.51]
[1759404665430,7.3,225.39,225.36,7.51]
[1759404665815,7.3,225.42,225.35,12.86163327]
[1759404666023,3.12168186,225.41,225.35,12.86163327]
[1759404666224,10.42168186,225.4,225.36,7.51]
[1759404666424,3.12168186,225.39,225.37,7.51]
[1759404666628,7.3,225.4,225.37,7.51]
[1759404667126,8.65993327,225.38,225.32,6.58]
[1759404667721,7.3,225.36,225.32,6.58]
[1759404668327,3.9915,225.37,225.32,6.58]
[1759404668525,7.3,225.36,225.32,6.58]
[1759404668725,3.9915,225.37,225.32,6.58]
[1759404668923,3.12241624,225.36,225.32,6.58]
[1759404669125,7.3,225.34,225.32,6.58]
[1759404669518,1.35993327,225.36,225.32,6.58]
[1759404669718,7.3,225.34,225.32,6.58]
[1759404670118,7.3,225.34,225.3,9.44]
[1759404670119,7.3,225.32,225.3,2.55483751]
[1759404670324,7.3,225.32,225.2,1.35993327]
[1759404670325,11.53224521,225.31,225.2,1.35993327]
[1759404670521,7.3,225.27,225.19,7.51]
[1759404670724,3.12342223,225.26,225.19,7.51]
[1759404670922,7.3,225.27,225.19,7.51]
[1759404671123,3.12182823,225.26,225.19,7.51]
[1759404671328,7.3,225.27,225.19,7.51]
[1759404672829,7.3,225.27,225.19,11.5046]
[1759404673129,7.3,225.27,225.2,4.31]
[1759404673329,10.4141383,225.27,225.2,4.31]
[1759404674029,7.3,225.27,225.2,4.31]
[1759404674226,10.41290605,225.27,225.2,4.31]
[1759404674523,7.3,225.25,225.2,4.31]
[1759404674724,1.35993327,225.25,225.2,4.31]
[1759404674932,10.41246103,225.24,225.2,4.31]
[1759404675134,7.3,225.23,225.2,4.31]
[1759404675330,1.35993327,225.25,225.2,4.31]
[1759404675527,3.11042056,225.24,225.2,4.31]
[1759404675732,7.3,225.23,225.2,4.31]
[1759404675933,3.9937,225.24,225.2,4.31]
[1759404676132,1.35993327,225.23,225.2,4.31]
[1759404676834,7.3,225.22,225.2,4.31]
[1759404677335,1.35993327,225.23,225.2,4.31]
[1759404677736,7.3,225.22,225.2,4.31]
[1759404678037,1.35993327,225.23,225.2,4.31]
[1759404678242,3.9937,225.24,225.2,4.31]
[1759404678834,7.3,225.23,225.2,4.31]
[1759404679034,3.9937,225.24,225.2,4.31]
[1759404679235,7.3,225.23,225.2,4.31]
[1759404679631,3.9937,225.24,225.2,4.31]
[1759404679832,7.3,225.23,225.2,4.31]
[1759404680038,112.2337,225.24,225.2,4.31]
[1759404680238,7.3,225.23,225.2,4.31]
[1759404680441,112.2337,225.24,225.2,4.31]
[1759404680643,7.3,225.23,225.2,4.31]
[1759404681142,112.2337,225.24,225.2,4.31]
[1759404681845,3.9937,225.24,225.2,4.31]
[1759404682141,7.3,225.23,225.2,4.31]
[1759404682342,108.22,225.24,225.2,4.31]
[1759404682545,7.3,225.23,225.2,4.31]
[1759404682739,108.22,225.24,225.2,4.31]
[1759404683637,108.2,225.23,225.2,4.31]
[1759404684138,7.59,225.22,225.2,4.31]
[1759404684341,108.2,225.23,225.2,4.31]
[1759404684741,7.59,225.22,225.2,4.31]
[1759404684938,108.2,225.23,225.2,4.31]
[1759404685142,7.59,225.22,225.2,4.31]
[1759404685544,108.2,225.23,225.2,4.31]
[1759404685737,7.59,225.22,225.2,4.31]
[1759404685940,108.2,225.23,225.2,4.31]
[1759404686247,7.59,225.22,225.2,4.31]
[1759404686643,108.2,225.23,225.2,4.31]
[1759404687045,7.59,225.22,225.2,4.31]
[1759404687244,108.2,225.23,225.2,4.31]
[1759404687638,7.59,225.22,225.2,4.31]
[1759404688044,108.2,225.23,225.2,4.31]
[1759404688544,7.59,225.22,225.2,4.31]
[1759404689646,115.73,225.22,225.2,4.31]
[1759404690850,7.59,225.21,225.2,4.31]
[1759404691955,115.69,225.21,225.2,4.31]
[1759404696455,7.59,225.27,225.2,4.31]
[1759404696655,108.1,225.26,225.2,4.31]
[1759404696953,7.59,225.25,225.2,4.31]
[1759404697154,108.1,225.26,225.2,4.31]
[1759404697654,108.1,225.26,225.2,8.3043]
[1759404697955,7.59,225.25,225.2,4.31]
[1759404698352,108.1,225.26,225.2,11.76]
[1759404698743,7.59,225.25,225.2,11.76]
[1759404699452,108.1,225.24,225.2,11.76]
[1759404699644,7.59,225.23,225.2,11.76]
[1759404700554,108.1,225.24,225.2,11.76]
[1759404701157,7.59,225.23,225.2,11.76]
[1759404701652,108.1,225.24,225.2,11.76]
[1759404701854,7.59,225.23,225.2,11.76]
[1759404702053,108.1,225.24,225.2,11.76]
[1759404702554,7.59,225.23,225.2,11.76]
[1759404703559,7.59,225.23,225.2,15.7543]
[1759404709258,7.59,225.25,225.2,15.7543]
[1759404709463,49.04,225.26,225.2,15.7543]
[1759404709663,7.59,225.25,225.2,15.7543]
[1759404709957,49.04,225.26,225.2,15.7543]
[1759404710357,7.59,225.25,225.2,15.7543]
[1759404710563,49.04,225.26,225.2,15.7543]
[1759404710863,7.59,225.25,225.2,15.7543]
[1759404711463,49.04,225.26,225.2,15.7543]
[1759404712368,3.10985697,225.25,225.2,15.7543]
[1759404712559,49.04,225.26,225.2,15.7543]
[1759404712756,3.10985697,225.25,225.2,15.7543]
[1759404713062,49.04,225.26,225.2,15.7543]
[1759404713264,3.10985697,225.25,225.2,15.7543]
[1759404713464,7.59,225.23,225.2,15.7543]
[1759404713663,7.59,225.23,225.21,7.45]
[1759404713861,2.91175965,225.25,225.21,7.27]
[1759404714060,2.91175965,225.31,225.24,7.27]
[1759404714259,8.37926616,225.32,225.24,7.27]
[1759404714260,7.27,225.32,225.28,3.9929]
[1759404714465,1.10926616,225.34,225.27,7.27]
[1759404715664,1.10926616,225.34,225.31,7.27]
[1759404715860,1.10902796,225.34,225.31,7.27]
[1759404716068,1.10902796,225.34,225.3,3.9925]
[1759404716676,7.27,225.35,225.3,3.9925]
[1759404716975,8.37902796,225.35,225.3,3.9925]
[1759404717182,7.27,225.35,225.3,3.9925]
[1759404717974,7.27,225.35,225.31,7.27]
[1759404718382,7.27,225.35,225.32,7.27]
[1759404718686,323.08,225.37,225.32,7.27]
[1759404719376,7.27,225.4,225.33,7.27]
[1759404719676,109.75885648,225.4,225.33,7.27]
[1759404719872,108.65,225.4,225.33,7.27]
[1759404720269,7.27,225.4,225.34,3.9918]
[1759404720575,7.27,225.4,225.32,2.12844651]
[1759404720576,7.27,225.4,225.33,7.27]
[1759404721070,7.27,225.4,225.35,3.9916]
[1759404721281,7.27,225.4,225.36,7.27]
[1759404721679,1.10870068,225.42,225.36,7.27]
[1759404721982,8.37870068,225.42,225.36,7.27]
[1759404722182,7.27,225.42,225.36,7.27]
[1759404725885,10.36922368,225.42,225.36,7.27]
[1759404726483,7.27,225.42,225.36,7.27]
[1759404727180,3.09763691,225.45,225.36,7.27]
[1759404727384,7.27,225.46,225.39,3.9911]
[1759404727586,7.27,225.46,225.4,7.27]
[1759404731885,11.26,225.46,225.4,7.27]
[1759404736892,7.27,225.46,225.4,11.2608]
[1759404737192,62.81984937,225.53,225.34,62.0969]
[1759404737193,7.27,225.49,225.39,7.27]
[1759404737593,7.27,225.49,225.42,3.9904]
[1759404737793,7.27,225.49,225.42,11.2604]
[1759404739691,7.27,225.49,225.43,8.62905926]
[1759404739892,7.27,225.52,225.46,7.27]
[1759404742395,11.2589,225.52,225.46,7.27]
[1759404742593,7.33,225.49,225.42,11.1604]
[1759404743099,11.3195,225.49,225.42,11.1604]
[1759404743395,7.33,225.45,225.39,3.9909]
[1759404743590,7.33,225.45,225.38,7.17]
[1759404743895,7.33,225.45,225.4,3.9908]
[1759404744097,26.39905926,225.48,225.41,7.53]
[1759404744397,7.55,225.47,225.41,7.53]
[1759404746395,7.55,225.47,225.41,11.5206]
[1759404749003,37.93865926,225.48,225.42,3.9904]
[1759404749304,7.55,225.46,225.38,8.88905926]
[1759404749504,8.90905926,225.46,225.38,8.88905926]
[1759404749699,1.35905926,225.44,225.35,7.53]
[1759404750002,7.55,225.43,225.35,7.53]
[1759404750302,7.55,225.41,225.35,7.53]
[1759404750502,11.5409,225.41,225.35,7.53]
[1759404750697,7.55,225.41,225.33,3.9921]
[1759404750892,7.55,225.39,225.33,3.9921]
[1759404751504,7.55,225.39,225.34,3.9918]
[1759404751703,7.55,225.39,225.32,8.88905926]
[1759404752104,5.34965926,225.42,225.35,3.9917]
[1759404752400,5.34965926,225.42,225.36,7.53]
[1759404752703,7.55,225.43,225.37,1.35905926]
[1759404753707,7.55,225.43,225.37,5.35035926]
[1759404756015,11.5403,225.44,225.38,4.3]
[1759404757514,7.55,225.44,225.38,4.3]
[1759404758314,10.64010965,225.44,225.38,4.3]
[1759404758517,7.55,225.44,225.38,4.3]
[1759404758813,11.5403,225.44,225.38,4.3]
[1759404759004,7.55,225.42,225.38,4.3]
[1759404759205,7.55,225.42,225.38,11.83]
[1759404760413,7.55,225.42,225.39,7.53]
[1759404761411,3.09563675,225.45,225.39,7.53]
[1759404761616,3.09563675,225.44,225.39,7.53]
[1759404761810,3.09563675,225.43,225.39,7.53]
[1759404762010,12.89895926,225.46,225.39,7.53]
[1759404762314,4.20548272,225.45,225.39,7.53]
[1759404762510,3.0970096,225.44,225.39,7.53]
[1759404762712,3.0970096,225.43,225.4,7.53]
[1759404763011,3.0970096,225.42,225.4,7.53]
[1759404763211,7.55,225.44,225.38,4.3]
[1759404763411,7.55,225.42,225.38,4.3]
[1759404763711,4.46995624,225.43,225.38,4.3]
[1759404763712,7.55,225.4,225.38,4.3]
[1759404763905,7.55,225.42,225.38,4.3]
[1759404764115,7.55,225.4,225.38,4.3]
[1759404765617,8.90905926,225.45,225.38,11.83]
[1759404765813,3.11245528,225.44,225.38,11.83]
[1759404766010,3.11245528,225.43,225.38,11.83]
[1759404766208,10.66245528,225.42,225.38,4.3]
[1759404766412,3.11245528,225.41,225.39,7.53]
[1759404766611,7.55,225.42,225.39,7.53]
[1759404767612,1.10847935,225.45,225.39,1.35905926]
[1759404767814,10.66298731,225.44,225.4,7.53]
[1759404768019,3.11298731,225.43,225.4,7.53]
[1759404768216,7.55,225.44,225.4,7.53]
[1759404768419,3.11291546,225.43,225.4,7.53]
[1759404768617,3.11291546,225.42,225.4,11.5208]
[1759404768812,7.55,225.44,225.4,11.5208]
[1759404769011,3.11354046,225.43,225.4,11.5208]
[1759404769212,3.11354046,225.42,225.4,7.53]
[1759404769412,3.9901,225.45,225.39,1.35905926]
[1759404769622,10.66370453,225.44,225.4,7.53]
[1759404769822,3.11370453,225.43,225.4,7.53]
[1759404770019,7.55,225.44,225.4,7.53]
[1759404770218,3.11370453,225.43,225.4,7.53]
[1759404770419,7.55,225.44,225.4,7.53]
[1759404770619,3.11401504,225.43,225.4,7.53]
[1759404770820,7.55,225.44,225.4,7.53]
[1759404771015,3.11401504,225.43,225.4,7.53]
[1759404771322,7.55,225.44,225.4,7.53]
[1759404771521,3.11434341,225.43,225.4,7.53]
[1759404771725,7.55,225.44,225.4,7.53]
[1759404772019,3.11434341,225.43,225.4,7.53]
[1759404772210,7.55,225.44,225.4,7.53]
[1759404772413,3.11431763,225.43,225.4,7.53]
[1759404772611,3.9901,225.45,225.4,7.53]
[1759404772823,10.66438207,225.44,225.4,7.53]
[1759404773016,3.11438207,225.43,225.4,7.53]
[1759404773216,7.55,225.44,225.4,7.53]
[1759404773415,3.11438207,225.43,225.4,7.53]
[1759404773623,7.55,225.44,225.4,7.53]
[1759404773818,10.66441733,225.43,225.4,7.53]
[1759404774019,7.55,225.43,225.4,7.53]
[1759404775218,3.9901,225.45,225.4,7.53]
[1759404775419,7.65,225.43,225.4,7.53]
[1759404780724,3.9901,225.45,225.38,4.3]
[1759404780725,7.65,225.45,225.38,4.3]
[1759404780922,7.65,225.43,225.38,4.3]
[1759404781123,3.11451177,225.42,225.38,4.3]
[1759404781326,3.11451177,225.41,225.38,4.3]
[1759404781629,7.65,225.39,225.38,4.3]
[1759404781829,10.76477611,225.39,225.38,4.3]
[1759404786132,11.87346456,225.39,225.31,7.49]
[1759404786324,7.65,225.36,225.31,7.49]
[1759404786528,7.10628378,225.35,225.28,11.38545041]
[1759404786832,7.65,225.39,225.31,1.35905926]
[1759404787031,51.04765708,225.38,225.32,7.49]
[1759404787221,3.14765708,225.37,225.32,7.49]
[1759404787427,47.9,225.38,225.31,1.35905926]
[1759404787428,3.14765708,225.36,225.31,1.35905926]
[1759404787627,3.14765708,225.35,225.32,7.49]
[1759404787825,47.9,225.38,225.32,7.49]
[1759404788027,3.1472862,225.37,225.31,1.35905926]
[1759404788226,3.1472862,225.36,225.32,7.49]
[1759404788428,3.1472862,225.35,225.31,1.35905926]
[1759404788629,7.65,225.38,225.31,1.35905926]
[1759404788630,7.65,225.38,225.32,7.49]
[1759404788830,3.14681895,225.37,225.31,5.35145926]
[1759404789025,3.14681895,225.36,225.32,7.49]
[1759404789230,7.65,225.38,225.32,7.49]
[1759404789426,3.14632377,225.37,225.31,5.35145926]
[1759404789631,3.14632377,225.36,225.32,7.49]
[1759404789832,11.6411,225.39,225.31,12.84145926]
[1759404790134,7.65,225.37,225.31,7.49]
[1759404790440,3.14632305,225.36,225.31,7.49]
[1759404790632,7.65,225.37,225.31,7.49]
[1759404790830,7.65,225.35,225.31,7.49]
[1759404792336,3.9916,225.36,225.31,7.49]
[1759404792537,7.65,225.35,225.31,7.49]
[1759404793032,3.9919,225.35,225.29,1.35905926]
[1759404793240,11.6419,225.35,225.29,7.49]
[1759404796145,7.65,225.35,225.29,11.4827]
[1759404798751,1.35905926,225.32,225.26,7.49]
[1759404798942,7.65,225.3,225.23,8.84905926]
[1759404799943,19.48,225.34,225.27,8.84905926]
[1759404800337,19.48,225.34,225.27,7.49]
[1759404800946,7.65,225.35,225.27,7.49]
[1759404801147,3.9922,225.33,225.27,11.4831]
[1759404807448,11.6418,225.35,225.3,7.36]
[1759404808149,11.6418,225.35,225.29,3.9928]
[1759404808450,11.6418,225.35,225.3,7.36]
[1759404808748,11.6418,225.35,225.29,3.9928]
[1759404809141,11.6418,225.35,225.3,7.36]
[1759404809342,85.22,225.38,225.3,11.3525]
[1759404809549,7.85,225.39,225.31,7.36]
[1759404809748,3.15323849,225.38,225.32,7.36]
[1759404810650,7.14463849,225.38,225.32,7.36]
[1759404811852,7.14463849,225.38,225.32,11.3522]
[1759404815158,3.9914,225.38,225.32,11.3522]
[1759404816459,3.15529845,225.37,225.3,3.9926]
[1759404816659,7.85,225.38,225.31,7.36]
[1759404816860,3.15529845,225.37,225.31,7.36]
[1759404817355,7.85,225.38,225.31,7.36]
[1759404817562,3.15590883,225.37,225.31,11.3524]
[1759404817862,11.8413,225.38,225.31,11.3524]
[1759404818063,3.15590737,225.37,225.31,11.3524]
[1759404818262,11.8413,225.38,225.31,11.3524]
[1759404818458,3.15655826,225.37,225.31,11.3524]
[1759404818762,11.8413,225.38,225.31,11.3524]
[1759404818959,3.15655826,225.37,225.31,11.3524]
[1759404819161,11.8413,225.38,225.31,11.3524]
[1759404819355,3.15671781,225.37,225.31,11.3524]
[1759404819661,11.8413,225.38,225.31,11.3524]
[1759404819854,3.157299,225.37,225.31,11.3524]
[1759404820058,11.8413,225.38,225.31,11.3524]
[1759404820259,3.15729827,225.37,225.31,11.3524]
[1759404820562,3.9915,225.37,225.31,11.3524]
[1759404821258,7.85,225.35,225.31,11.3524]
[1759404821458,7.85,225.35,225.32,7.36]
[1759404821662,7.85,225.35,225.31,3.9924]
[1759404821854,7.85,225.35,225.32,7.36]
[1759404823060,7.85,225.35,225.31,3.9924]
[1759404823256,7.85,225.35,225.33,7.36]
[1759404823659,3.9915,225.37,225.33,7.36]
[1759404823860,3.16490279,225.36,225.33,7.36]
[1759404824059,3.9915,225.37,225.3,3.9926]
[1759404824264,11.01500347,225.36,225.3,3.9926]
[1759404824464,11.01500347,225.35,225.31,7.36]
[1759404824663,7.85,225.35,225.31,7.36]
[1759404824857,7.85,225.35,225.3,3.9926]
[1759404825658,7.85,225.35,225.31,7.36]
[1759404825965,7.85,225.35,225.3,3.9926]
[1759404826166,7.85,225.35,225.31,7.36]
[1759404826461,3.9917,225.36,225.31,7.36]
[1759404826667,11.01715485,225.35,225.31,7.36]
[1759404826965,7.85,225.35,225.31,7.36]
[1759404827366,7.85,225.35,225.32,7.36]
[1759404827767,7.85,225.41,225.31,2.12624955]
[1759404828061,3.167504,225.4,225.35,7.36]
[1759404828366,3.167504,225.39,225.34,2.12624955]
[1759404828560,3.167504,225.38,225.35,7.36]
[1759404828764,7.85,225.41,225.35,7.36]
[1759404828963,3.16715301,225.4,225.34,2.12624955]
[1759404829160,7.85,225.38,225.35,7.36]
[1759404829561,7.85,225.38,225.34,6.11804955]
[1759404829763,3.991,225.4,225.34,13.47804955]
[1759404829963,3.16712047,225.39,225.35,7.36]
[1759404830262,3.16712047,225.38,225.34,6.11804955]
[1759404830465,7.85,225.45,225.36,7.36]
[1759404830664,4.27516624,225.44,225.37,2.12624955]
[1759404830863,3.16666138,225.43,225.37,2.12624955]
[1759404831063,3.16666138,225.42,225.38,7.36]
[1759404831263,7.85,225.45,225.38,7.36]
[1759404831563,3.16505161,225.44,225.38,7.36]
[1759404831759,3.16505161,225.43,225.38,7.36]
[1759404831965,3.16505161,225.42,225.38,7.36]
[1759404832163,7.85,225.45,225.38,7.36]
[1759404832469,3.16379172,225.44,225.38,7.36]
[1759404832665,3.16379172,225.43,225.39,3.9909]
[1759404832867,7.85,225.45,225.39,3.9909]
[1759404833066,3.16377261,225.44,225.4,7.36]
[1759404833262,3.16377261,225.43,225.39,3.9909]
[1759404833460,7.85,225.45,225.39,3.9909]
[1759404833660,3.16261109,225.44,225.39,3.9909]
[1759404833864,7.85,225.45,225.39,3.9909]
[1759404834064,3.16261109,225.44,225.4,3.9908]
[1759404834264,5.09810946,225.47,225.41,7.84]
[1759404834464,3.16154188,225.46,225.38,7.84]
[1759404834666,3.16154188,225.45,225.4,2.12624955]
[1759404834868,3.16154188,225.44,225.42,7.84]
[1759404835164,3.16102475,225.47,225.42,7.84]
[1759404835359,7.74,225.51,225.42,7.84]
[1759404835567,3.15919201,225.5,225.42,7.84]
[1759404835766,3.15919201,225.49,225.42,7.84]
[1759404835966,3.15919201,225.48,225.42,7.84]
[1759404836267,7.74,225.51,225.42,7.84]
[1759404836465,3.15757069,225.5,225.42,7.84]